fUSD/lending_fUSD_20241107
["ID","MTS","AMOUNT","RATE_DAILY","PERIOD"]
[341530652,1730962240994,-500.0,0.00031497,4]
[341530653,1730962241003,-500.0,0.00031497,4]
[341530654,1730962241012,-500.0,0.00031497,4]
[341530655,1730962241022,-507.31,0.00031497,4]
[341530656,1730962241031,-500.0,0.00031497,4]
[341530657,1730962241041,-500.0,0.00031497,4]
[341530658,1730962241051,-500.0,0.00031497,4]
[341530659,1730962241060,-500.0,0.00031497,4]
[341530660,1730962241070,-500.0,0.00031497,4]
[341530661,1730962241081,-500.0,0.00031497,4]
[341530662,1730962241090,-500.0,0.00031497,4]
[341530663,1730962241100,-500.0,0.00031497,4]
[341530664,1730962241110,-500.0,0.00031497,4]
[341530665,1730962241120,-500.0,0.00031497,4]
[341530666,1730962241130,-1124.47,0.00031497,4]
[341530667,1730962241140,-500.0,0.00031497,4]
[341530668,1730962241149,-500.0,0.00031497,4]
[341530669,1730962241159,-500.0,0.00031497,4]
[341530670,1730962241170,-500.0,0.00031497,4]
[341530671,1730962241180,-809.63,0.00031497,4]
[341530672,1730962241189,-1137.42,0.00031497,4]
[341530673,1730962241199,-502.65342417,0.00031497,4]
[341530674,1730962241208,-513.58448371,0.00031497,4]
[341530675,1730962241220,-1096.88,0.00031497,4]
[341530676,1730962241229,-500.0,0.00031497,4]
[341530677,1730962241239,-501.48,0.00031497,4]
[341530678,1730962241247,-500.0,0.00031497,4]
[341530679,1730962241257,-500.0,0.00031497,4]
[341530680,1730962241266,-500.0,0.00031497,4]
[341530681,1730962241275,-500.0,0.00031497,4]
[341530682,1730962241285,-500.0,0.00031497,4]
[341530683,1730962241294,-500.0,0.00031497,4]
[341530684,1730962241303,-98.31945067,0.00031497,4]
[341530685,1730962241320,-401.68054933,0.00031497,4]
[341530686,1730962241329,-500.0,0.00031497,4]
[341530687,1730962241339,-500.0,0.00031497,4]
[341530688,1730962241348,-538.14824411,0.00031497,4]
[341530689,1730962241381,-156.06175589,0.00031497,4]
[341530690,1730962241390,-549.87,0.00031497,4]
[341530691,1730962241399,-500.0,0.00031497,4]
[341530692,1730962241409,-500.0,0.00031497,4]
[341530693,1730962241418,-483.7608309,0.00031497,4]
[341530700,1730962242592,-218.9538469,0.00031397,2]
[341530701,1730962242602,-173.68850135,0.00031397,2]
[341530702,1730962242612,-3999.46,0.00031494,4]
[341530703,1730962242621,-500.0,0.00031495,4]
[341530704,1730962242631,-500.0,0.00031495,4]
[341530705,1730962242641,-16.2391691,0.00031497,4]
[341530706,1730962242650,-322.05343327,0.00031497,4]
[341530707,1730962242665,-177.94656673,0.00031497,4]
[341530708,1730962242675,-500.0,0.00031497,4]
[341530709,1730962242684,-500.0,0.00031497,4]
[341530710,1730962242695,-500.0,0.00031497,4]
[341530711,1730962242705,-500.0,0.00031497,4]
[341530712,1730962242717,-500.0,0.00031497,4]
[341530713,1730962242727,-571.58944265,0.00031497,4]
[341530714,1730962242753,-112.51055735,0.00031497,4]
[341530715,1730962242763,-500.0,0.00031497,4]
[341530716,1730962242773,-500.0,0.00031497,4]
[341530717,1730962242783,-500.0,0.00031497,4]
[341530718,1730962242792,-500.0,0.00031497,4]
[341530719,1730962242802,-500.0,0.00031497,4]
[341530720,1730962242812,-486.120612,0.00031497,4]
[341530721,1730962242821,-828.87,0.00031497,4]
[341530722,1730962242831,-500.0,0.00031497,4]
[341530723,1730962242841,-1037.08,0.00031497,4]
[341530724,1730962242850,-558.68481118,0.00031497,4]
[341530725,1730962242862,-1495.22518882,0.00031497,4]
[341530726,1730962242872,-447.32422535,0.00031497,4]
[341530727,1730962242883,-68.52577465,0.00031497,4]
[341530728,1730962242893,-500.0,0.00031497,4]
[341530729,1730962242903,-500.0,0.00031497,4]
[341530730,1730962242912,-298.213325,0.00031497,4]
[341530731,1730962242922,-1635.18,0.00031497,4]
[341530732,1730962242932,-500.0,0.00031497,4]
[341530733,1730962242941,-945.56,0.00031497,4]
[341530734,1730962242951,-622.18,0.00031497,4]
[341530735,1730962242960,-500.0,0.00031497,4]
[341530736,1730962242973,-755.6,0.00031497,4]
[341530737,1730962242982,-1126.13,0.00031497,4]
[341530738,1730962242992,-500.0,0.00031497,4]
[341530739,1730962243002,-1798.68,0.00031497,4]
[341530740,1730962243011,-1400.19,0.00031497,4]
[341530741,1730962243020,-692.33,0.00031497,4]
[341530742,1730962243030,-500.0,0.00031497,4]
[341530743,1730962243039,-1159.55,0.00031497,4]
[341530744,1730962243048,-830.5,0.00031497,4]
[341530745,1730962243058,-500.0,0.00031497,4]
[341530746,1730962243067,-500.0,0.00031497,4]
[341530747,1730962243077,-500.0,0.00031497,4]
[341530748,1730962243087,-501.03060842,0.00031497,4]
[341530749,1730962243096,-500.0,0.00031497,4]
[341530750,1730962243106,-571.26,0.00031497,4]
[341530751,1730962243115,-500.0,0.00031497,4]
[341530752,1730962243124,-550.5,0.00031497,4]
[341530753,1730962243134,-2693.13,0.00031497,4]
[341530754,1730962243143,-500.0,0.00031497,4]
[341530755,1730962243152,-500.0,0.00031497,4]
[341530757,1730962243161,-500.0,0.00031497,4]
[341530759,1730962243171,-500.0,0.00031497,4]
[341530761,1730962243181,-601.6,0.00031497,4]
[341530764,1730962243191,-500.0,0.00031497,4]
[341530767,1730962243200,-523.83,0.00031497,4]
[341530769,1730962243209,-500.0,0.00031497,4]
[341530771,1730962243222,-500.0,0.00031497,4]
[341530773,1730962243231,-500.0,0.00031497,4]
[341530775,1730962243241,-500.0,0.00031497,4]
[341530777,1730962243250,-1429.05,0.00031497,4]
[341530779,1730962243260,-701.16,0.00031497,4]
[341530781,1730962243269,-500.0,0.00031497,4]
[341530783,1730962243278,-500.0,0.00031497,4]
[341530785,1730962243287,-500.0,0.00031497,4]
[341530787,1730962243296,-1690.42,0.00031497,4]
[341530789,1730962243305,-500.0,0.00031497,4]
[341530791,1730962243315,-500.0,0.00031497,4]
[341530793,1730962243324,-500.0,0.00031497,4]
[341530795,1730962243333,-575.43,0.00031497,4]
[341530797,1730962243343,-575.43,0.00031497,4]
[341530799,1730962243352,-575.43,0.00031497,4]
[341530801,1730962243362,-575.43,0.00031497,4]
[341530803,1730962243371,-1657.4,0.00031497,4]
[341530805,1730962243380,-549.28,0.00031497,4]
[341530807,1730962243390,-500.0,0.00031497,4]
[341530809,1730962243401,-500.0,0.00031497,4]
[341530814,1730962243410,-500.0,0.00031497,4]
[341530815,1730962243681,-500.0,0.00031497,4]
[341530816,1730962243690,-2148.07,0.00031497,4]
[341530817,1730962243700,-500.0,0.00031497,4]
[341530818,1730962243710,-500.0,0.00031497,4]
[341530819,1730962243724,-500.0,0.00031497,4]
[341530820,1730962243733,-513.83,0.00031497,4]
[341530821,1730962243744,-1007.79,0.00031497,4]
[341530822,1730962243754,-573.44189885,0.00031497,4]
[341530823,1730962243763,-1340.55,0.00031497,4]
[341530824,1730962243773,-500.0,0.00031497,4]
[341530825,1730962243783,-500.0,0.00031497,4]
[341530826,1730962243792,-500.0,0.00031497,4]
[341530827,1730962243801,-500.0,0.00031497,4]
[341530828,1730962243811,-1736.3,0.00031497,4]
[341530829,1730962243821,-1000.0,0.00031497,30]
[341530830,1730962243830,-500.0,0.00031497,4]
[341530831,1730962243840,-1396.9,0.00031497,4]
[341530832,1730962243851,-1136.65,0.00031497,4]
[341530833,1730962243860,-582.37031653,0.00031497,4]
[341530834,1730962243870,-500.0,0.00031497,4]
[341530835,1730962243880,-500.0,0.00031497,4]
[341530836,1730962243889,-500.0,0.00031497,4]
[341530837,1730962243899,-1267.03,0.00031497,4]
[341530838,1730962243909,-1506.71,0.00031497,4]
[341530839,1730962243918,-697.53,0.00031497,4]
[341530840,1730962243928,-551.75,0.00031497,4]
[341530841,1730962243937,-500.0,0.00031497,4]
[341530842,1730962243947,-690.55,0.00031497,4]
[341530843,1730962243957,-2031.55,0.00031497,4]
[341530844,1730962243968,-794.59,0.00031497,4]
[341530845,1730962243977,-500.0,0.00031497,4]
[341530846,1730962243987,-875.01,0.00031497,4]
[341530847,1730962243997,-533.61,0.00031497,4]
[341530848,1730962244006,-883.63,0.00031497,4]
[341530849,1730962244016,-713.04,0.00031497,4]
[341530850,1730962244026,-760.3,0.00031497,4]
[341530851,1730962244036,-1255.88,0.00031497,4]
[341530852,1730962244045,-363.94403172,0.00031497,4]
[341530853,1730962244055,-500.0,0.00031497,4]
[341530854,1730962244065,-1432.03,0.00031497,4]
[341530855,1730962244074,-500.0,0.00031497,4]
[341530856,1730962244085,-500.0,0.00031497,4]
[341530857,1730962244095,-500.0,0.00031497,4]
[341530858,1730962244105,-1671.72,0.00031497,4]
[341530859,1730962244114,-500.0,0.00031497,4]
[341530860,1730962244125,-500.0,0.00031497,4]
[341530861,1730962244135,-505.96,0.00031497,4]
[341530862,1730962244144,-500.0,0.00031497,4]
[341530863,1730962244154,-891.49,0.00031497,4]
[341530864,1730962244165,-2325.63,0.00031497,4]
[341530865,1730962244175,-572.64,0.00031497,4]
[341530866,1730962244185,-500.0,0.00031497,4]
[341530867,1730962244196,-824.96,0.00031497,4]
[341530868,1730962244205,-500.0,0.00031497,4]
[341530869,1730962244221,-1536.47,0.00031497,4]
[341530870,1730962244243,-500.0,0.00031497,4]
[341530871,1730962244253,-889.52,0.00031497,4]
[341530872,1730962244262,-500.0,0.00031497,4]
[341530873,1730962244272,-1430.38,0.00031497,4]
[341530874,1730962244283,-500.0,0.00031497,4]
[341530875,1730962244293,-950.95,0.00031497,4]
[341530876,1730962244303,-500.0,0.00031497,4]
[341530877,1730962244313,-624.8,0.00031497,4]
[341530878,1730962244323,-1000.0,0.00031497,10]
[341530879,1730962244333,-583.1,0.00031497,4]
[341530880,1730962244343,-1628.0,0.00031497,4]
[341530881,1730962244353,-500.0,0.00031497,4]
[341530882,1730962244364,-500.0,0.00031497,4]
[341530883,1730962244375,-500.0,0.00031497,4]
[341530884,1730962244385,-500.0,0.00031497,4]
[341530885,1730962244396,-1702.04,0.00031497,4]
[341530886,1730962244406,-500.0,0.00031497,4]
[341530887,1730962244416,-500.0,0.00031497,4]
[341530888,1730962244427,-779.11,0.00031497,4]
[341530889,1730962244437,-500.0,0.00031497,4]
[341530890,1730962244447,-500.0,0.00031497,4]
[341530891,1730962244457,-500.0,0.00031497,4]
[341530892,1730962244470,-1708.12,0.00031497,4]
[341530893,1730962244481,-500.0,0.00031497,4]
[341530894,1730962244492,-500.0,0.00031497,4]
[341530895,1730962244502,-500.0,0.00031497,4]
[341530896,1730962244512,-500.0,0.00031497,4]
[341530897,1730962244522,-506.02,0.00031497,4]
[341530898,1730962244533,-1275.65,0.00031497,4]
[341530899,1730962244542,-500.0,0.00031497,4]
[341530900,1730962244552,-500.0,0.00031497,4]
[341530901,1730962244561,-851.53,0.00031497,4]
[341530902,1730962244571,-933.09,0.00031497,4]
[341530903,1730962244581,-552.38,0.00031497,4]
[341530904,1730962244591,-695.6,0.00031497,4]
[341530905,1730962244600,-500.0,0.00031497,4]
[341530906,1730962244610,-416.63089038,0.00031497,4]
[341530907,1730962244619,-777.65,0.00031497,4]
[341530908,1730962244628,-542.83,0.00031497,4]
[341530909,1730962244638,-921.89,0.00031497,4]
[341530910,1730962244647,-720.23,0.00031497,4]
[341530911,1730962244657,-500.0,0.00031497,4]
[341530912,1730962244669,-500.0,0.00031497,4]
[341530913,1730962244679,-630.16,0.00031497,4]
[341530914,1730962244688,-638.49,0.00031497,4]
[341530915,1730962244699,-500.0,0.00031497,4]
[341530916,1730962244708,-719.69,0.00031497,4]
[341530917,1730962244719,-554.79,0.00031497,4]
[341530918,1730962244729,-500.0,0.00031497,4]
[341530919,1730962244740,-500.0,0.00031497,4]
[341530920,1730962244751,-500.0,0.00031497,4]
[341530921,1730962244762,-1771.38,0.00031497,4]
[341530922,1730962244771,-681.5,0.00031497,4]
[341530923,1730962244781,-2050.33,0.00031497,4]
[341530924,1730962244790,-500.0,0.00031497,4]
[341530925,1730962244800,-690.7,0.00031497,4]
[341530926,1730962244810,-1557.12,0.00031497,4]
[341530927,1730962244819,-1205.05,0.00031497,4]
[341530928,1730962244829,-500.0,0.00031497,4]
[341530929,1730962244839,-500.0,0.00031497,4]
[341530930,1730962244849,-1537.11,0.00031497,4]
[341530931,1730962244859,-500.0,0.00031497,4]
[341530932,1730962244869,-500.0,0.00031497,4]
[341530933,1730962244878,-500.0,0.00031497,4]
[341530934,1730962244888,-1158.23,0.00031497,4]
[341530935,1730962244898,-1436.36,0.00031497,4]
[341530936,1730962244907,-952.71,0.00031497,4]
[341530937,1730962244917,-534.62592134,0.00031497,4]
[341530938,1730962244926,-500.0,0.00031497,4]
[341530939,1730962244935,-509.19,0.00031497,4]
[341530940,1730962244945,-500.0,0.00031497,4]
[341530941,1730962244956,-500.0,0.00031497,4]
[341530942,1730962244966,-4087.18,0.00031497,4]
[341530943,1730962244975,-500.0,0.00031497,4]
[341530944,1730962244985,-1465.45,0.00031497,4]
[341530945,1730962244995,-500.0,0.00031497,4]
[341530946,1730962245004,-500.0,0.00031497,4]
[341530947,1730962245014,-531.84,0.00031497,4]
[341530948,1730962245024,-740.29,0.00031497,4]
[341530949,1730962245034,-715.1,0.00031497,4]
[341530950,1730962245044,-740.29,0.00031497,4]
[341530951,1730962245054,-740.29,0.00031497,4]
[341530952,1730962245064,-740.29,0.00031497,4]
[341530953,1730962245073,-500.0,0.00031497,4]
[341530954,1730962245084,-500.0,0.00031497,4]
[341530955,1730962245094,-500.0,0.00031497,4]
[341530956,1730962245103,-869.93,0.00031497,4]
[341530957,1730962245114,-567.21,0.00031497,4]
[341530958,1730962245123,-527.37405678,0.00031497,4]
[341530959,1730962245133,-500.0,0.00031497,4]
[341530960,1730962245143,-535.5,0.00031497,4]
[341530961,1730962245152,-1117.64,0.00031497,4]
[341530962,1730962245162,-2385.89,0.00031497,4]
[341530963,1730962245171,-860.38,0.00031497,4]
[341530964,1730962245180,-1209.48,0.00031497,4]
[341530965,1730962245189,-500.0,0.00031497,4]
[341530966,1730962245201,-1126.36,0.00031497,4]
[341530967,1730962245211,-556.89,0.00031497,4]
[341530968,1730962245223,-500.0,0.00031497,4]
[341530969,1730962245233,-570.59,0.00031497,4]
[341530970,1730962245243,-845.27,0.00031497,4]
[341530971,1730962245253,-1716.52,0.00031497,4]
[341530972,1730962245263,-1716.52,0.00031497,4]
[341530973,1730962245274,-1716.52,0.00031497,4]
[341530974,1730962245284,-1716.52,0.00031497,4]
[341530975,1730962245294,-500.0,0.00031497,4]
[341530976,1730962245305,-1495.89,0.00031497,4]
[341530977,1730962245315,-500.0,0.00031497,4]
[341530978,1730962245325,-1929.21,0.00031497,4]
[341530979,1730962245335,-500.0,0.00031497,4]
[341530980,1730962245345,-500.0,0.00031497,4]
[341530981,1730962245355,-500.0,0.00031497,4]
[341530984,1730962245365,-500.0,0.00031497,4]
[341530986,1730962245375,-1052.59,0.00031497,4]
[341530987,1730962245386,-500.0,0.00031497,4]
[341530988,1730962245397,-586.54,0.00031497,4]
[341530989,1730962245408,-548.75845261,0.00031497,4]
[341530990,1730962245419,-1030.99,0.00031497,4]
[341530991,1730962245429,-1473.28,0.00031497,4]
[341530992,1730962245440,-500.0,0.00031497,4]
[341530993,1730962245450,-500.0,0.00031497,4]
[341530994,1730962245460,-1504.37,0.00031497,4]
[341530995,1730962245473,-804.85,0.00031497,4]
[341530996,1730962245483,-500.0,0.00031497,4]
[341530997,1730962245493,-4522.25,0.00031497,4]
[341530998,1730962245502,-427.36802003,0.00031497,4]
[341530999,1730962245512,-500.0,0.00031497,4]
[341531000,1730962245522,-500.0,0.00031497,4]
[341531001,1730962245531,-196.14967838,0.00031497,4]
[341531002,1730962245541,-500.0,0.00031497,4]
[341531003,1730962245550,-521.27,0.00031497,4]
[341531004,1730962245560,-500.0,0.00031497,4]
[341531005,1730962245570,-1217.16,0.00031497,4]
[341531006,1730962245579,-500.0,0.00031497,4]
[341531007,1730962245589,-500.0,0.00031497,4]
[341531008,1730962245598,-500.0,0.00031497,4]
[341531009,1730962245608,-1441.5,0.00031497,4]
[341531010,1730962245618,-500.0,0.00031497,4]
[341531011,1730962245627,-500.0,0.00031497,4]
[341531012,1730962245638,-603.61,0.00031497,4]
[341531013,1730962245648,-500.0,0.00031497,4]
[341531014,1730962245658,-972.71,0.00031497,4]
[341531015,1730962245671,-507.07,0.00031497,4]
[341531016,1730962245681,-1231.58,0.00031497,4]
[341531017,1730962245691,-514.25,0.00031497,4]
[341531018,1730962245701,-500.0,0.00031497,4]
[341531019,1730962245712,-500.0,0.00031497,4]
[341531020,1730962245725,-500.0,0.00031497,4]
[341531021,1730962245735,-500.0,0.00031497,4]
[341531022,1730962245746,-500.0,0.00031497,4]
[341531023,1730962245756,-647.27,0.00031497,4]
[341531024,1730962245766,-500.0,0.00031497,4]
[341531025,1730962245776,-500.0,0.00031497,4]
[341531026,1730962245786,-500.0,0.00031497,4]
[341531027,1730962245796,-500.0,0.00031497,4]
[341531028,1730962245807,-500.0,0.00031497,4]
[341531029,1730962245817,-500.0,0.00031497,4]
[341531030,1730962245828,-500.0,0.00031497,4]
[341531031,1730962245839,-500.0,0.00031497,7]
[341531032,1730962245850,-500.0,0.00031497,4]
[341531033,1730962245860,-500.0,0.00031497,4]
[341531034,1730962245870,-500.0,0.00031497,4]
[341531035,1730962245880,-500.0,0.00031497,4]
[341531036,1730962245891,-500.0,0.00031497,4]
[341531037,1730962245901,-500.0,0.00031497,4]
[341531038,1730962245911,-1960.37,0.00031497,4]
[341531039,1730962245922,-596.94,0.00031497,4]
[341531040,1730962245933,-1038.23,0.00031497,2]
[341531041,1730962245942,-883.67,0.00031497,4]
[341531042,1730962245953,-605.17,0.00031497,4]
[341531043,1730962245964,-619.11,0.00031497,4]
[341531044,1730962245975,-500.0,0.00031497,4]
[341531045,1730962245989,-500.0,0.00031497,4]
[341531046,1730962246000,-500.0,0.00031497,4]
[341531047,1730962246011,-500.0,0.00031497,4]
[341531048,1730962246021,-500.0,0.00031497,4]
[341531049,1730962246032,-665.12,0.00031497,4]
[341531050,1730962246042,-911.97,0.00031497,4]
[341531051,1730962246052,-500.0,0.00031497,4]
[341531052,1730962246061,-500.0,0.00031497,4]
[341531053,1730962246071,-3120.75,0.00031497,4]
[341531054,1730962246083,-514.34,0.00031497,4]
[341531055,1730962246094,-514.34,0.00031497,4]
[341531056,1730962246104,-514.34,0.00031497,4]
[341531059,1730962246115,-514.34,0.00031497,4]
[341531062,1730962246125,-699.13,0.00031497,4]
[341531064,1730962246135,-4301.52,0.00031497,4]
[341531066,1730962246146,-500.0,0.00031497,4]
[341531068,1730962246156,-500.0,0.00031497,4]
[341531070,1730962246165,-500.0,0.00031497,4]
[341531072,1730962246175,-500.0,0.00031497,4]
[341531074,1730962246184,-500.0,0.00031497,2]
[341531076,1730962246194,-884.24,0.00031497,4]
[341531078,1730962246204,-500.0,0.00031497,4]
[341531080,1730962246214,-500.0,0.00031497,4]
[341531082,1730962246224,-501.9,0.00031497,4]
[341531084,1730962246235,-500.0,0.00031497,4]
[341531086,1730962246245,-519.15,0.00031497,4]
[341531088,1730962246255,-500.0,0.00031497,4]
[341531090,1730962246264,-500.0,0.00031497,4]
[341531092,1730962246274,-2032.0,0.00031507,4]
[341531094,1730962246283,-500.0,0.00031579,4]
[341531096,1730962246293,-575.43,0.00031579,4]
[341531098,1730962246303,-740.29,0.00031579,4]
[341531100,1730962246312,-1716.52,0.00031579,4]
[341531102,1730962246322,-514.34,0.00031579,4]
[341531104,1730962246331,-152.0,0.00031594,5]
[341531106,1730962246341,-500.0,0.00031596,4]
[341531108,1730962246351,-500.0,0.00031598,4]
[341531110,1730962246360,-500.0,0.00031598,4]
[341531111,1730962246370,-575.43,0.00031598,4]
[341531113,1730962246380,-575.43,0.00031598,4]
[341531115,1730962246391,-740.29,0.00031598,4]
[341531117,1730962246402,-740.29,0.00031598,4]
[341531119,1730962246412,-500.0,0.00031598,4]
[341531121,1730962246422,-1716.52,0.00031598,4]
[341531124,1730962246432,-1716.52,0.00031598,4]
[341531125,1730962246441,-514.34,0.00031598,4]
[341531127,1730962246451,-514.34,0.00031598,4]
[341531129,1730962246460,-13782.8755408,0.00031599,2]
[341531132,1730962246472,-500.0,0.00031599,4]
[341531134,1730962246482,-503.23951532,0.00031599,4]
[341531136,1730962246491,-500.99816793,0.00031599,4]
[341531138,1730962246501,-500.0,0.00031599,4]
[341531140,1730962246511,-502.68417888,0.00031599,4]
[341531142,1730962246520,-500.0,0.00031599,4]
[341531144,1730962246531,-404.06975579,0.00031599,4]
[341531146,1730962246540,-500.0,0.00031599,2]
[341531148,1730962246550,-501.95360876,0.00031599,4]
[341531150,1730962246559,-500.0,0.00031599,4]
[341531152,1730962246569,-500.0,0.00031599,4]
[341531154,1730962246580,-500.0,0.00031599,4]
[341531156,1730962246590,-566.6159874,0.00031599,4]
[341531157,1730962246600,-500.0,0.00031599,4]
[341531158,1730962246610,-500.0,0.00031599,4]
[341531159,1730962246619,-500.0,0.00031599,4]
[341531160,1730962246629,-500.0,0.00031599,4]
[341531161,1730962246639,-1013.16,0.00031599,4]
[341531162,1730962246648,-500.0,0.00031599,4]
[341531163,1730962246658,-500.0,0.00031599,4]
[341531164,1730962246672,-500.0,0.00031599,4]
[341531165,1730962246681,-500.0,0.00031599,4]
[341531166,1730962246690,-548.65630153,0.00031599,4]
[341531167,1730962246699,-500.0,0.00031599,4]
[341531168,1730962246710,-500.0,0.00031599,4]
[341531169,1730962246722,-500.0,0.00031599,4]
[341531170,1730962246731,-312.78284184,0.00031599,4]
[341531171,1730962246742,-500.0,0.00031599,4]
[341531172,1730962246751,-500.0,0.00031599,4]
[341531173,1730962246761,-500.0,0.00031599,4]
[341531174,1730962246770,-500.80379326,0.00031599,4]
[341531175,1730962246779,-590.11,0.00031599,4]
[341531176,1730962246789,-500.0,0.00031599,4]
[341531177,1730962246798,-500.0,0.00031599,4]
[341531178,1730962246807,-500.0,0.00031599,4]
[341531179,1730962246816,-202.420471,0.00031599,4]
[341531180,1730962246825,-500.0,0.00031599,4]
[341531181,1730962246834,-500.0,0.00031599,4]
[341531182,1730962246843,-500.0,0.00031599,4]
[341531183,1730962246852,-500.0,0.00031599,4]
[341531184,1730962246861,-500.0,0.00031599,4]
[341531185,1730962246871,-500.0,0.00031599,4]
[341531186,1730962246880,-1073.54,0.00031599,4]
[341531187,1730962246889,-500.0,0.00031599,4]
[341531188,1730962246898,-500.0,0.00031599,4]
[341531189,1730962246908,-859.7,0.00031599,4]
[341531190,1730962246918,-131.15973326,0.00031599,4]
[341531191,1730962246937,-368.84026674,0.00031599,4]
[341531192,1730962246946,-500.0,0.00031599,4]
[341531193,1730962246956,-500.0,0.00031599,4]
[341531194,1730962246965,-500.0,0.00031599,4]
[341531195,1730962246976,-677.09,0.00031599,4]
[341531196,1730962246985,-309.24,0.00031599,4]
[341531197,1730962246995,-500.0,0.00031599,4]
[341531198,1730962247004,-500.0,0.00031599,4]
[341531199,1730962247013,-500.0,0.00031599,4]
[341531200,1730962247022,-500.0,0.00031599,4]
[341531201,1730962247031,-494.31737891,0.00031599,4]
[341531202,1730962247040,-500.0,0.00031599,4]
[341531203,1730962247049,-522.32,0.00031599,4]
[341531204,1730962247058,-500.0,0.00031599,4]
[341531205,1730962247067,-500.0,0.00031599,4]
[341531206,1730962247078,-500.0,0.00031599,4]
[341531207,1730962247087,-500.0,0.00031599,4]
[341531208,1730962247096,-500.0,0.00031599,4]
[341531209,1730962247106,-500.0,0.00031599,4]
[341531210,1730962247115,-500.0,0.00031599,4]
[341531211,1730962247124,-500.0,0.00031599,4]
[341531212,1730962247134,-500.0,0.00031599,4]
[341531213,1730962247143,-544.45,0.00031599,4]
[341531214,1730962247152,-500.0,0.00031599,4]
[341531215,1730962247161,-776.99,0.00031599,4]
[341531216,1730962247170,-500.0,0.00031599,4]
[341531217,1730962247180,-500.0,0.00031599,4]
[341531218,1730962247189,-516.68,0.00031599,4]
[341531219,1730962247199,-500.0,0.00031599,4]
[341531220,1730962247207,-500.0,0.00031599,4]
[341531221,1730962247216,-523.53,0.00031599,4]
[341531222,1730962247225,-500.0,0.00031599,4]
[341531223,1730962247234,-1094.1,0.00031599,4]
[341531224,1730962247243,-500.0,0.00031599,4]
[341531225,1730962247252,-500.0,0.00031599,4]
[341531226,1730962247261,-619.01,0.00031599,4]
[341531227,1730962247270,-500.0,0.00031599,4]
[341531228,1730962247279,-924.09,0.00031599,4]
[341531229,1730962247288,-500.0,0.00031599,4]
[341531230,1730962247297,-575.43,0.00031599,4]
[341531231,1730962247307,-500.0,0.00031599,4]
[341531232,1730962247316,-500.0,0.00031599,4]
[341531233,1730962247325,-675.4,0.00031599,4]
[341531234,1730962247334,-776.11,0.00031599,4]
[341531235,1730962247343,-500.0,0.00031599,4]
[341531236,1730962247352,-500.0,0.00031599,4]
[341531237,1730962247361,-500.0,0.00031599,4]
[341531238,1730962247370,-771.43,0.00031599,4]
[341531239,1730962247379,-365.73322401,0.00031599,4]
[341531240,1730962247389,-500.0,0.00031599,4]
[341531241,1730962247398,-500.0,0.00031599,4]
[341531242,1730962247408,-500.0,0.00031599,4]
[341531243,1730962247419,-666.69,0.00031599,4]